fUSD/lending_fUSD_20260427
["ID","MTS","AMOUNT","RATE_DAILY","PERIOD"]
[421201920,1777241433145,-500.0,7.889e-05,2]
[421201921,1777241433155,-500.0,7.889e-05,2]
[421201922,1777241433165,-500.0,7.889e-05,2]
[421201923,1777241433175,-153.84018742,7.89e-05,2]
[421201924,1777241433184,-19372.74,7.89e-05,2]
[421201925,1777241433194,-279.58,7.89e-05,14]
[421201926,1777241433204,-1996.653,7.89e-05,2]
[421201927,1777241433214,-169205.52,7.89e-05,2]
[421201928,1777241433225,-299.99,7.89e-05,2]
[421201929,1777241433234,-150.99,7.89e-05,2]
[421201930,1777241433244,-9999.99,7.89e-05,2]
[421201931,1777241433255,-313.67,7.89e-05,2]
[421201932,1777241433264,-24355.09,7.89e-05,2]
[421201933,1777241433273,-28056.12,7.89e-05,2]
[421201934,1777241433282,-2121.05,7.89e-05,2]
[421201935,1777241433292,-167.36,7.89e-05,2]
[421201936,1777241433301,-9999.99,7.89e-05,2]
[421201937,1777241433310,-765.99,7.89e-05,2]
[421201938,1777241433320,-1603.69,7.89e-05,2]
[421201939,1777241433330,-150.0,7.891e-05,2]
[421201940,1777241433340,-337.45912999,7.893e-05,2]
[421201941,1777241433349,-500.0,7.893e-05,2]
[421201942,1777241433358,-500.0,7.893e-05,2]
[421201943,1777241433368,-378.02289078,7.893e-05,2]
[421201944,1777241433377,-209.13749155,7.893e-05,2]
[421201945,1777241433387,-500.0,7.893e-05,2]
[421201946,1777241433396,-500.0,7.893e-05,2]
[421201947,1777241433405,-200.19658438,7.893e-05,2]
[421201948,1777241433415,-500.0,7.893e-05,2]
[421201949,1777241433425,-500.0,7.893e-05,2]
[421201950,1777241433434,-2487.93964206,7.898e-05,2]
[421201951,1777241433443,-9999.99,7.899e-05,2]
[421201952,1777241433452,-352.16,7.899e-05,2]
[421201953,1777241433462,-999.99,7.899e-05,2]
[421201954,1777241433471,-4999.99,7.899e-05,2]
[421201955,1777241433481,-6900.0,7.9e-05,2]
[421201956,1777241433491,-286.11955987,7.918e-05,2]
[421201957,1777241433500,-150.00000001,7.918e-05,2]
[421201958,1777241433510,-267.27191678,7.918e-05,2]
[421201959,1777241433519,-262.64773088,7.918e-05,2]
[421201960,1777241433529,-258.60354854,7.918e-05,2]
[421201961,1777241433539,-4808.187,7.918e-05,2]
[421201962,1777241433549,-428.258,7.918e-05,2]
[421201963,1777241433559,-782.0,7.92e-05,5]
[421201964,1777241433568,-250.0,7.92e-05,2]
[421201965,1777241433579,-124011.01208347,7.92e-05,2]
[421201966,1777241433592,-28694.56554459,7.92e-05,2]
[421201967,1777241433603,-77168.24483838,7.92e-05,2]
[421201968,1777241433614,-30234.77433419,7.92e-05,2]
[421201973,1777241438213,-500.0,7.616e-05,2]
[421201974,1777241438223,-196.40112496,7.839e-05,2]
[421201975,1777241438268,-1137.74832809,7.839e-05,2]
[421201976,1777241438431,-3836.88252142,7.839e-05,2]
[421201977,1777241438442,-500.0,7.888e-05,2]
[421201978,1777241438451,-508.74746321,7.888e-05,2]
[421201979,1777241438463,-557.28724829,7.888e-05,2]
[421201980,1777241438473,-557.28724829,7.888e-05,2]
[421201981,1777241438483,-500.0,7.888e-05,2]
[421201982,1777241438492,-557.28724829,7.888e-05,2]
[421201983,1777241438501,-557.28724829,7.888e-05,2]
[421201984,1777241438511,-374.54762182,7.888e-05,2]
[421201985,1777241438520,-557.28724829,7.888e-05,2]
[421201986,1777241438529,-557.28724829,7.888e-05,2]
[421201987,1777241438539,-557.28724829,7.888e-05,2]
[421201988,1777241438549,-557.28724829,7.888e-05,2]
[421201989,1777241438559,-557.28724829,7.888e-05,2]
[421201990,1777241438569,-557.28724829,7.888e-05,2]
[421201991,1777241438578,-557.28724829,7.888e-05,2]
[421201992,1777241438588,-557.28724829,7.888e-05,2]
[421201993,1777241438597,-557.28724829,7.888e-05,2]
[421201994,1777241438607,-557.28724829,7.888e-05,2]
[421201995,1777241438616,-557.28724829,7.888e-05,2]
[421201996,1777241438625,-557.28724829,7.888e-05,2]
[421201997,1777241438635,-557.28724829,7.888e-05,2]
[421201998,1777241438644,-557.28724829,7.888e-05,2]
[421201999,1777241438654,-557.28724829,7.888e-05,2]
[421202001,1777241438663,-557.28724829,7.888e-05,2]
[421202003,1777241438672,-557.28724829,7.888e-05,2]
[421202005,1777241438682,-557.28724829,7.888e-05,2]
[421202007,1777241438691,-557.28724829,7.888e-05,2]
[421202009,1777241438701,-557.28724829,7.888e-05,2]
[421202011,1777241438711,-557.28724829,7.888e-05,2]
[421202013,1777241438720,-557.28724829,7.888e-05,2]
[421202015,1777241438729,-557.28724829,7.888e-05,2]
[421202017,1777241438739,-557.28724829,7.888e-05,2]
[421202019,1777241438748,-557.28724829,7.888e-05,2]
[421202021,1777241438757,-557.28724829,7.888e-05,2]
[421202023,1777241438767,-557.28724829,7.888e-05,2]
[421202025,1777241438776,-557.28724829,7.888e-05,2]
[421202027,1777241438786,-557.28724829,7.888e-05,2]
[421202029,1777241438795,-557.28724829,7.888e-05,2]
[421202031,1777241438804,-557.28724829,7.888e-05,2]
[421202033,1777241438814,-557.28724829,7.888e-05,2]
[421202035,1777241438824,-557.28724829,7.888e-05,2]
[421202037,1777241438835,-557.28724829,7.888e-05,2]
[421202039,1777241438845,-557.28724829,7.888e-05,2]
[421202041,1777241438854,-557.28724829,7.888e-05,2]
[421202043,1777241438863,-557.28724829,7.888e-05,2]
[421202045,1777241438873,-557.28724829,7.888e-05,2]
[421202047,1777241438882,-557.28724829,7.888e-05,2]
[421202049,1777241438892,-557.28724829,7.888e-05,2]
[421202051,1777241438902,-557.28724829,7.888e-05,2]
[421202053,1777241438913,-557.28724829,7.888e-05,2]
[421202055,1777241438922,-557.28724829,7.888e-05,2]
[421202057,1777241438932,-557.28724829,7.888e-05,2]
[421202059,1777241438941,-557.28724829,7.888e-05,2]
[421202061,1777241438950,-557.28724829,7.888e-05,2]
[421202063,1777241438960,-557.28724829,7.888e-05,2]
[421202065,1777241438969,-557.28724829,7.888e-05,2]
[421202067,1777241438978,-557.28724829,7.888e-05,2]
[421202069,1777241438988,-557.28724829,7.888e-05,2]
[421202071,1777241438997,-47797.42786978,7.92e-05,2]
[421202229,1777241440499,-500.0,7.671e-05,2]
[421202231,1777241440508,-165.0,7.92e-05,2]
[421202234,1777241440531,-471966.18969674,7.92e-05,2]
[421202237,1777241440550,-482.25934277,7.92e-05,2]
[421202239,1777241440565,-17366.869809,7.92e-05,2]
[421202255,1777241440710,-2117.85157499,7.92e-05,2]
[421202257,1777241440721,-514.07266405,7.92e-05,2]
[421202259,1777241440733,-512.27802841,7.92e-05,2]
[421202415,1777241443389,-500.0,7.753e-05,2]
[421202416,1777241443401,-679.34543511,7.92e-05,2]
[421202417,1777241443426,-3920.2,7.92e-05,2]
[421202418,1777241443438,-229352.91163165,7.92e-05,2]
[421202429,1777241446048,-407.61746187,7.92e-05,2]
[421202430,1777241446060,-6754.41849012,7.92e-05,2]
[421202431,1777241446073,-786.4792154,7.92e-05,2]
[421202432,1777241446109,-333.70769963,7.92e-05,2]
[421202433,1777241446163,-19888.77601703,7.92e-05,2]
[421202434,1777241446294,-2847.99992638,7.92e-05,2]
[421202435,1777241446330,-35683.30065166,7.92e-05,2]
[421202436,1777241446342,-207653.3875265,7.92e-05,2]
[421202437,1777241446353,-7901.74712596,7.92e-05,2]
[421202667,1777241508342,1383.94,0.00032192,120]
[421202668,1777241525239,-300.0,7.789e-05,2]
[421202669,1777241525262,-300.0,7.789e-05,2]
[421202670,1777241613627,400.0,7.69e-05,2]
[421202677,1777242129042,227.23,0.00032876,120]
[421202678,1777242133858,3318.77,0.00032877,120]
[421202679,1777242137471,227.23,0.00032876,120]
[421202716,1777242633518,-579.75456,7.536e-05,2]
[421202717,1777242633643,-277.4649206,7.536e-05,2]
[421202718,1777242633682,-342.7805194,7.536e-05,2]
[421202719,1777242633693,-193.0,7.536e-05,2]
[421202720,1777242633703,-250.0,7.537e-05,2]
[421202721,1777242633712,-2251.7833626,7.537e-05,2]
[421202722,1777242633753,-1594.7666374,7.537e-05,2]
[421202723,1777242633763,-342.607,7.537e-05,2]
[421202724,1777242633773,-203.58030326,7.552e-05,2]
[421202725,1777242633783,-300.0,7.561e-05,2]
[421202726,1777242633793,-150.0,7.589e-05,2]
[421202727,1777242633802,-1403.34399282,7.59e-05,2]
[421202728,1777242633814,-5382.99720718,7.59e-05,2]
[421202729,1777242633824,-250.0,7.689e-05,2]
[421202730,1777242633833,-14136.0,7.69e-05,2]
[421202731,1777242633843,-9999.99,7.69e-05,2]
[421202732,1777242633852,-299.99,7.69e-05,2]
[421202733,1777242633862,-4442.49,7.69e-05,2]
[421202734,1777242633872,-150.99,7.69e-05,2]
[421202735,1777242633882,-1000.0,7.692e-05,2]
[421202736,1777242633891,-213.97855896,7.816e-05,2]
[421202737,1777242633900,-9999.99,7.853e-05,2]
[421202738,1777242633910,-999.99,7.853e-05,2]
[421202739,1777242633920,-1191.11104075,7.853e-05,2]
[421202740,1777242633930,-578.20924308,7.853e-05,2]
[421202741,1777242633941,-200.0,7.853e-05,2]
[421202742,1777242633952,-601.3376128,7.853e-05,2]
[421202743,1777242633962,-7965.41053268,7.853e-05,2]
[421202744,1777242633972,-174.61919141,7.853e-05,2]
[421202745,1777242633981,-151.0,7.853e-05,2]
[421202746,1777242633990,-174.61919141,7.853e-05,2]
[421202747,1777242633999,-743.50770149,7.853e-05,2]
[421202748,1777242634009,-152.0,7.853e-05,2]
[421202749,1777242634020,-152.0,7.853e-05,2]
[421202750,1777242634029,-160.0,7.853e-05,2]
[421202751,1777242634038,-196.59114265,7.853e-05,2]
[421202752,1777242634047,-152.0,7.853e-05,2]
[421202753,1777242634056,-272.26766677,7.853e-05,2]
[421202754,1777242634065,-203.86501493,7.853e-05,2]
[421202755,1777242634074,-211.40802048,7.853e-05,2]
[421202756,1777242634083,-219.23011724,7.853e-05,2]
[421202757,1777242634091,-227.34163157,7.853e-05,2]
[421202758,1777242634099,-235.75327194,7.853e-05,2]
[421202759,1777242634109,-244.476143,7.853e-05,2]
[421202760,1777242634119,-253.52176029,7.853e-05,2]
[421202761,1777242634128,-262.90206542,7.853e-05,2]
[421202762,1777242634138,-578.20924308,7.853e-05,2]
[421202763,1777242634147,-272.62944185,7.853e-05,2]
[421202764,1777242634156,-174.61919141,7.853e-05,2]
[421202765,1777242634166,-282.71673119,7.853e-05,2]
[421202766,1777242634175,-293.17725025,7.853e-05,2]
[421202767,1777242634185,-454.17868583,7.853e-05,2]
[421202768,1777242634194,-174.61919141,7.853e-05,2]
[421202769,1777242634204,-279.9045709,7.853e-05,2]
[421202770,1777242634213,-174.61919141,7.853e-05,2]
[421202771,1777242634223,-151.4083656,7.853e-05,2]
[421202772,1777242634232,-550.86,7.853e-05,2]
[421202773,1777242634241,-498.17071115,7.888e-05,2]
[421202774,1777242634251,-271.60144277,7.888e-05,2]
[421202775,1777242634260,-2900.0,7.9e-05,2]
[421202776,1777242634270,-8260.13072239,7.908e-05,2]
[421202777,1777242634280,-151.0,7.908e-05,2]
[421202778,1777242634289,-151.0,7.917e-05,2]
[421202779,1777242634298,-151.0,7.917e-05,2]
[421202780,1777242634308,-205.00460292,7.919e-05,2]
[421202781,1777242634317,-153.84018742,7.92e-05,2]
[421202782,1777242634326,-300.0,7.92e-05,2]
[421202783,1777242634336,-1000.0,7.956e-05,2]
[421202784,1777242634345,-8565.75555911,7.963e-05,2]
[421202785,1777242634354,-151.0,7.963e-05,2]
[421202786,1777242634363,-5900.0,8e-05,2]
[421202787,1777242634373,-8882.6885148,8.018e-05,2]
[421202788,1777242634382,-151.0,8.018e-05,2]
[421202789,1777242634391,-9211.34798985,8.073e-05,2]
[421202790,1777242634401,-151.0,8.073e-05,2]
[421202791,1777242634410,-1093.85407049,8.119e-05,2]
[421202792,1777242634419,-1093.85407049,8.119e-05,2]
[421202793,1777242634429,-1093.85407049,8.119e-05,2]
[421202794,1777242634438,-550.86,8.127e-05,2]
[421202795,1777242634448,-5837.03086437,8.128e-05,2]
[421202796,1777242634460,-410.6584033,8.128e-05,2]
[421202797,1777242634471,-699.20288059,8.128e-05,2]
[421202798,1777242634483,-2107.37240693,8.128e-05,2]
[421202799,1777242634509,-497.90331028,8.128e-05,2]
[421202800,1777242634519,-16.72398338,8.128e-05,2]
[421202801,1777242634530,-134.27601662,8.128e-05,2]
[421202802,1777242634540,-617.0,8.146e-05,5]
[421202803,1777242634549,-398.79310861,8.146e-05,5]
[421202809,1777242638808,-152.72751354,8.072e-05,2]
[421202810,1777242638820,-500.0,8.072e-05,2]
[421202811,1777242638831,-346.27248646,8.072e-05,2]
[421202828,1777242640527,-153.72751354,8.072e-05,2]
[421202829,1777242640540,-500.0,8.072e-05,2]
[421202830,1777242640552,-500.0,8.072e-05,2]
[421202831,1777242640564,-500.0,8.072e-05,2]
[421202832,1777242640577,-500.0,8.072e-05,2]
[421202833,1777242640588,-500.0,8.072e-05,2]
[421202834,1777242640599,-500.0,8.072e-05,2]
[421202835,1777242640611,-500.0,8.072e-05,2]
[421202836,1777242640623,-500.0,8.072e-05,2]
[421202837,1777242640635,-500.0,8.072e-05,2]
[421202838,1777242640645,-500.0,8.072e-05,2]
[421202839,1777242640657,-500.0,8.072e-05,2]
[421202840,1777242640668,-500.0,8.072e-05,2]
[421202841,1777242640680,-500.0,8.072e-05,2]
[421202842,1777242640692,-500.0,8.072e-05,2]
[421202843,1777242640703,-172.55130037,8.072e-05,2]
[421202844,1777242641139,-142.81854338,8.072e-05,2]
[421202845,1777242641150,-500.0,8.072e-05,2]
[421202846,1777242641161,-250.20689139,8.146e-05,5]
[421202847,1777242641172,-5652.39612,8.178e-05,2]
[421202848,1777242641183,-9905.5980765,8.183e-05,2]
[421202849,1777242641194,-151.0,8.183e-05,2]
[421202850,1777242641205,-151.0,8.216e-05,2]
[421202851,1777242641216,-500.0,8.219e-05,2]
[421202852,1777242641226,-500.0,8.219e-05,2]
[421202853,1777242641237,-500.0,8.219e-05,2]
[421202854,1777242641247,-500.0,8.219e-05,2]
[421202855,1777242641258,-500.0,8.219e-05,2]
[421202856,1777242641269,-500.0,8.219e-05,2]
[421202857,1777242641281,-500.0,8.219e-05,2]
[421202858,1777242641291,-500.0,8.219e-05,2]
[421202859,1777242641301,-500.0,8.219e-05,2]
[421202860,1777242641312,-500.0,8.219e-05,2]
[421202861,1777242641323,-500.0,8.219e-05,2]
[421202862,1777242641334,-318.28402247,8.219e-05,2]
[421202863,1777242641344,-280.0,8.219e-05,2]
[421202864,1777242641355,-500.0,8.219e-05,2]
[421202865,1777242641366,-1876.42956898,8.238e-05,2]
[421202866,1777242641376,-151.0,8.238e-05,2]
[421202867,1777242641387,-152.0,8.248e-05,2]
[421202868,1777242641397,-152.0,8.248e-05,2]
[421202869,1777242641408,-152.0,8.261e-05,2]
[421202870,1777242641419,-152.0,8.261e-05,2]
[421202871,1777242641431,-152.0,8.261e-05,2]
[421202872,1777242641443,-152.0,8.261e-05,2]
[421202873,1777242641454,-152.0,8.269e-05,2]
[421202874,1777242641465,-152.0,8.269e-05,2]
[421202875,1777242641476,-152.0,8.269e-05,2]
[421202876,1777242641486,-152.0,8.269e-05,2]
[421202877,1777242641499,-152.0,8.269e-05,2]
[421202878,1777242641511,-152.0,8.269e-05,2]
[421202879,1777242641521,-152.0,8.284e-05,2]
[421202880,1777242641533,-152.0,8.284e-05,2]
[421202881,1777242641544,-1093.85407049,8.288e-05,3]
[421202882,1777242641557,-250.0,8.29e-05,2]
[421202883,1777242641568,-300.0,8.29e-05,2]
[421202884,1777242641578,-300.0,8.29e-05,2]
[421202885,1777242641589,-300.0,8.29e-05,2]
[421202886,1777242641600,-198.39118392,8.29e-05,2]
[421202887,1777242641619,-101.60881608,8.29e-05,2]
[421202888,1777242641630,-204.46018392,8.29e-05,2]
[421202889,1777242641644,-295.53981608,8.29e-05,2]
[421202890,1777242641655,-250.0,8.29e-05,2]
[421202891,1777242641666,-361.59655683,8.29e-05,2]
[421202892,1777242641676,-193.0,8.29e-05,2]
[421202893,1777242641686,-216.16845512,8.29e-05,2]
[421202902,1777242644539,-200.0,8.1e-05,2]
[421202903,1777242644549,-4783.83154488,8.29e-05,2]
[421202904,1777242644558,-5000.0,8.29e-05,2]
[421202905,1777242644569,-3820.66553951,8.29e-05,2]
[421202906,1777242644578,-300.0,8.29e-05,2]
[421202907,1777242644588,-300.0,8.29e-05,2]
[421202908,1777242644602,-300.0,8.29e-05,2]
[421202909,1777242644612,-300.21724868,8.29e-05,2]
[421202910,1777242644622,-500.0,8.29e-05,2]
[421202911,1777242644635,-500.0,8.29e-05,2]
[421202912,1777242644645,-500.0,8.29e-05,2]
[421202913,1777242644656,-501.78438159,8.29e-05,2]
[421202914,1777242644667,-1680.0,8.29e-05,2]
[421202915,1777242644677,-151.0,8.293e-05,2]
[421202916,1777242644686,-152.0,8.293e-05,2]
[421202917,1777242644696,-152.0,8.293e-05,2]
[421202918,1777242644706,-152.0,8.293e-05,2]
[421202919,1777242644716,-420.0,8.317e-05,2]
[421202920,1777242644726,-151.0,8.348e-05,2]
[421202921,1777242644736,-255.0,8.348e-05,2]
[421202922,1777242644746,-1235.18214925,8.401e-05,2]
[421202923,1777242644756,-200.0,8.401e-05,2]
[421202924,1777242644766,-181.08010149,8.401e-05,2]
[421202925,1777242644777,-181.08010149,8.401e-05,2]
[421202926,1777242644787,-771.01748645,8.401e-05,2]
[421202927,1777242644796,-643.18203751,8.401e-05,2]
[421202928,1777242644807,-181.08010149,8.401e-05,2]
[421202929,1777242644816,-290.26104003,8.401e-05,2]
[421202930,1777242644826,-181.08010149,8.401e-05,2]
[421202931,1777242644837,-550.86,8.401e-05,2]
[421202932,1777242644847,-151.0,8.403e-05,2]
[421202933,1777242644857,-151.0,8.458e-05,2]
[421202934,1777242644867,-500.0,8.493e-05,2]
[421202935,1777242644876,-151.0,8.513e-05,2]
[421202936,1777242644887,-151.0,8.568e-05,2]
[421202937,1777242644897,-10000.0,8.6e-05,2]
[421202938,1777242644907,-151.0,8.623e-05,2]
[421202939,1777242644917,-227.79739024,8.673e-05,2]
[421202940,1777242644927,-500.2403318,8.673e-05,2]
[421202941,1777242644938,-500.0,8.673e-05,2]
[421202942,1777242644948,-500.0,8.673e-05,2]
[421202943,1777242644958,-500.0,8.673e-05,2]
[421202944,1777242644968,-500.0,8.673e-05,2]
[421202945,1777242644977,-500.0,8.673e-05,2]
[421202946,1777242644988,-500.0,8.673e-05,2]
[421202947,1777242645002,-500.0,8.673e-05,2]
[421202948,1777242645012,-550.86,8.675e-05,2]
[421202949,1777242645023,-151.0,8.678e-05,2]
[421202950,1777242645033,-638.0,8.685e-05,2]
[421202951,1777242645043,-154.7246712,8.697e-05,2]
[421202952,1777242645053,-1532.0,8.698e-05,2]
[421202953,1777242645063,-1532.0,8.698e-05,2]
[421202954,1777242645073,-152.0,8.698e-05,2]
[421202955,1777242645083,-1532.0,8.698e-05,2]
[421202956,1777242645093,-152.0,8.698e-05,2]
[421202957,1777242645103,-151.0,8.698e-05,2]
[421202958,1777242645113,-302.0,8.698e-05,2]
[421202959,1777242645123,-1093.85407048,8.699e-05,3]
[421202960,1777242645133,-500.0,8.699e-05,2]
[421202961,1777242645143,-500.0,8.699e-05,2]
[421202962,1777242645153,-500.0,8.699e-05,2]
[421202963,1777242645163,-500.0,8.699e-05,2]
[421202964,1777242645173,-432.10387364,8.699e-05,2]
[421202965,1777242645183,-500.0,8.699e-05,2]
[421202966,1777242645193,-500.0,8.699e-05,2]
[421202967,1777242645203,-300.27854493,8.699e-05,2]
[421202968,1777242645213,-500.0,8.699e-05,2]
[421202969,1777242645228,-500.0,8.699e-05,2]
[421202970,1777242645238,-602.2301402,8.699e-05,2]
[421202971,1777242645248,-500.0,8.699e-05,2]
[421202972,1777242645258,-500.0,8.699e-05,2]
[421202973,1777242645271,-500.0,8.699e-05,2]
[421202974,1777242645281,-500.0,8.699e-05,2]
[421202975,1777242645291,-500.0,8.699e-05,2]
[421202976,1777242645301,-643116.68005369,8.7e-05,2]
[421202977,1777242645355,-342.69717213,8.7e-05,2]
[421202978,1777242645395,-388.11415823,7.888e-05,2]
[421202979,1777242645405,-596.37973145,8.7e-05,2]
[421202982,1777242646424,-446.9,8.656e-05,2]
[421202983,1777242646434,-5926.31764588,8.7e-05,2]
[421202984,1777242646461,-1165.57730191,8.7e-05,2]
[421202985,1777242646521,-26043.30398392,8.7e-05,2]
[421202986,1777242646533,-6486.69601608,8.7e-05,2]
[421202987,1777242646546,-46249.356553,8.7e-05,2]
[421202988,1777242646801,-922.71694264,8.7e-05,2]
[421202989,1777242646813,-537.60600006,8.7e-05,2]
[421202990,1777242646824,-394.0282776,8.7e-05,2]
[421202991,1777242646835,-130791.19355146,8.7e-05,2]
[421202992,1777242646860,-793.1136,8.7e-05,2]
[421202996,1777242698074,215.10494875,0.000328,120]
[421202997,1777242773517,1000.0,0.00032,120]
[421202998,1777242778899,1000.0,0.00032,120]
[421202999,1777243067059,170.0,0.0003287,120]
[421203000,1777243069022,279.0,0.0003287,120]
[421203001,1777243071314,159.86994447,0.0003,120]
[421203002,1777243120703,486.0,0.0003287,120]
[421203003,1777243123397,460.0,0.0003287,120]
[421203006,1777243256190,3000.0,0.000328,120]
[421203035,1777243832381,-300.0,7.298e-05,2]
[421203036,1777243832391,-231.0,7.298e-05,2]
[421203037,1777243832406,-69.0,7.298e-05,2]
[421203038,1777243832415,-300.0,7.298e-05,2]
[421203039,1777243832425,-1200.0,7.298e-05,2]
[421203040,1777243832434,-250.0,7.298e-05,2]
[421203041,1777243832443,-150.0,7.299e-05,2]
[421203042,1777243832453,-169.2913192,7.299e-05,2]
[421203043,1777243832462,-150.0,7.299e-05,2]
[421203044,1777243832472,-189.53974354,7.299e-05,2]
[421203045,1777243832481,-150.0,7.299e-05,2]
[421203046,1777243832490,-150.0,7.299e-05,2]
[421203047,1777243832500,-150.0,7.299e-05,2]
[421203048,1777243832508,-150.0,7.299e-05,2]
[421203049,1777243832518,-150.0,7.335e-05,2]
[421203050,1777243832527,-250.0,7.343e-05,2]
[421203051,1777243832537,-150.0,7.372e-05,2]
[421203052,1777243832547,-150.0,7.409e-05,2]
[421203053,1777243832556,-150.0,7.446e-05,2]
[421203054,1777243832565,-150.0,7.483e-05,2]
[421203055,1777243832574,-150.0,7.501e-05,2]
[421203056,1777243832583,-150.0,7.52e-05,2]
[421203057,1777243832592,-150.0,7.557e-05,2]
[421203058,1777243832601,-112.36501183,7.569e-05,2]
[421203059,1777243832613,-37.63498817,7.569e-05,2]
[421203060,1777243832622,-150.0,7.569e-05,2]
[421203061,1777243832631,-150.0,7.569e-05,2]
[421203062,1777243832640,-509.64341354,7.587e-05,2]
[421203063,1777243832652,-892.62471101,7.587e-05,2]
[421203064,1777243832675,-1100.0,7.587e-05,2]
[421203065,1777243832687,-2189.55887545,7.587e-05,2]
[421203066,1777243832696,-387.335,7.587e-05,2]
[421203067,1777243832706,-150.0,7.588e-05,2]
[421203068,1777243832715,-3536.42705759,7.589e-05,2]
[421203069,1777243832728,-24082.99660202,7.589e-05,2]
[421203070,1777243832737,-150.0,7.594e-05,2]
[421203071,1777243832747,-150.0,7.63e-05,2]
[421203072,1777243832756,-150.0,7.667e-05,2]
[421203073,1777243832765,-150.0,7.704e-05,2]
[421203074,1777243832774,-150.0,7.704e-05,2]
[421203075,1777243832784,-150.0,7.741e-05,2]
[421203076,1777243832793,-150.0,7.778e-05,2]
[421203077,1777243832802,-578.20924308,7.788e-05,2]
[421203078,1777243832811,-174.61919141,7.788e-05,2]
[421203079,1777243832821,-2500.0,7.8e-05,2]
[421203080,1777243832830,-150.0,7.815e-05,2]
[421203081,1777243832839,-150.0,7.839e-05,2]
[421203082,1777243832848,-150.0,7.839e-05,2]
[421203083,1777243833167,-150.0,7.839e-05,2]
[421203084,1777243833187,-150.0,7.852e-05,2]
[421203085,1777243833197,-150.0,7.888e-05,2]
[421203086,1777243833206,-5000.0,7.9e-05,2]
[421203087,1777243833216,-150.0,7.907e-05,2]
[421203088,1777243833225,-150.0,7.925e-05,2]
[421203089,1777243833235,-150.0,7.962e-05,2]
[421203090,1777243833244,-150.0,7.999e-05,2]
[421203091,1777243833254,-7500.0,8e-05,2]
[421203092,1777243833263,-6945.84677307,8.008e-05,2]
[421203093,1777243833272,-250.0,8.014e-05,2]
[421203094,1777243833282,-43511.3069,8.018e-05,2]
[421203095,1777243833291,-420.0,8.027e-05,2]
[421203096,1777243833301,-1680.0,8.027e-05,2]
[421203097,1777243833310,-250.0,8.028e-05,2]
[421203098,1777243833319,-150.0,8.036e-05,2]
[421203099,1777243833328,-150.0,8.073e-05,2]
[421203100,1777243833338,-3782.131,8.082e-05,2]
[421203101,1777243833347,-1483.92,8.082e-05,2]
[421203102,1777243833357,-9999.99,8.082e-05,2]
[421203103,1777243833367,-1574.13,8.082e-05,2]
[421203104,1777243833376,-499.99,8.082e-05,2]
[421203105,1777243833385,-999.99,8.082e-05,2]
[421203106,1777243833394,-150.99,8.082e-05,2]
[421203107,1777243833403,-9999.99,8.082e-05,2]
[421203108,1777243833412,-3690.47,8.082e-05,2]
[421203109,1777243833421,-2790.45,8.082e-05,2]
[421203110,1777243833430,-151280.32448813,8.1e-05,2]
[421203111,1777243833441,-76234.43693946,8.1e-05,2]
[421203112,1777243833453,-167205.93114477,8.1e-05,2]
[421203113,1777243833464,-28881.35842227,8.1e-05,2]
[421203114,1777243833474,-312.7,8.1e-05,2]
[421203115,1777243833500,-648.73496734,8.1e-05,2]
[421203120,1777243837669,-391.825,8.099e-05,2]
[421203121,1777243837889,-108.175,8.099e-05,2]
[421203122,1777243837899,-318.44346658,8.099e-05,2]
[421203123,1777243837911,-125.23270108,8.099e-05,2]
[421203124,1777243837921,-500.0,8.099e-05,2]
[421203125,1777243837931,-500.0,8.099e-05,2]
[421203126,1777243837941,-500.0,8.099e-05,2]
[421203127,1777243837951,-500.0,8.099e-05,2]
[421203128,1777243837961,-500.0,8.099e-05,2]
[421203129,1777243837970,-609.77368861,8.099e-05,2]
[421203130,1777243837981,-5224.99361031,8.1e-05,2]
[421203131,1777243837993,-49400.26685555,8.1e-05,2]
[421203132,1777243838006,-524.77411423,8.1e-05,2]
[421203133,1777243838018,-5861.0,8.1e-05,2]
[421203159,1777243839897,-276.99747719,8.1e-05,2]
[421203160,1777243839910,-401.57908608,8.1e-05,2]
[421203161,1777243839954,-1528.70657414,8.1e-05,2]
[421203162,1777243839966,-372.34049029,8.1e-05,2]
[421203163,1777243840009,-671.0856057,8.1e-05,2]
[421203164,1777243840021,-3984.22621312,8.1e-05,2]
[421203165,1777243840093,-1407.38003316,8.1e-05,2]
[421203166,1777243840113,-342.56559444,8.1e-05,2]
[421203167,1777243840558,-523764.00534147,8.1e-05,2]
[421203168,1777243840669,-10874.03214022,8.1e-05,2]